[Event "European Women Rapid-ch 2023"]
[Site "Monaco"]
[Date "2024.01.14"]
[Round "10.22"]
[White "Monpeurt, Cyrielle"]
[Black "Schulze, Lara"]
[Result "0-1"]
[ECO "C49"]
[WhiteElo "2187"]
[BlackElo "2285"]
[Annotator "ChessBase"]
[PlyCount "115"]
[EventDate "2023.12.19"]
[EventType "swiss"]
[EventCountry "MNC"]
[SourceTitle "playchess.com"]
[Source "ChessBase"]
[SourceQuality "1"]
[TimeControl "900+10"]

1. e4 {[%emt 0:00:02]} e5 {[%emt 0:00:01]} 2. Nf3 {[%emt 0:00:02]} Nc6 {[%emt 0:00:01]} 3. Nc3 {[%emt 0:00:03]} Nf6 {[%emt 0:00:04]} 4. Bb5 {[%emt 0:00:02]} Bb4 {[%emt 0:00:08]} 5. O-O {[%emt 0:00:07]} O-O {[%emt 0:00:25]} 6. Bxc6 {[%emt 0:00:02]} dxc6 {[%emt 0:00:38]} 7. d3 {[%emt 0:00:06]} Re8 {[%emt 0:02:14]} 8. Bg5 {[%emt 0:00:06]} h6 {[%emt 0:00:22]} 9. Bh4 {[%emt 0:00:05]} Qd6 {[%emt 0:02:49]} 10. h3 {[%emt 0:00:08]} Qe6 {[%emt 0:03:34]} 11. Bg3 {[%emt 0:00:31]} Bd6 {[%emt 0:00:59]} 12. Ne2 {[%emt 0:04:24]} c5 {[%emt 0:00:04]} 13. Bh2 {[%emt 0:02:07]} c4 {[%emt 0:01:16]} 14. d4 {[%emt 0:01:46]} Nxe4 {[%emt 0:01:17]} 15. dxe5 {[%emt 0:00:03]} Bc5 {[%emt 0:00:22]} 16. Ned4 {[%emt 0:00:28]} Qb6 {[%emt 0:00:24]} 17. Re1 {[%emt 0:02:08]} Ng5 {[%emt 0:00:13]} 18. c3 {[%emt 0:00:59]} Nxf3+ {[%emt 0:00:13]} 19. Qxf3 {[%emt 0:00:02]} Bxd4 {[%emt 0:00:26]} 20. cxd4 {[%emt 0:00:02]} Qxd4 {[%emt 0:00:14]} 21. Rac1 {[%emt 0:00:29]} Be6 {[%emt 0:00:15]} 22. b3 {[%emt 0:01:21]} Bd5 {[%emt 0:01:21]} 23. Red1 {[%emt 0:00:26]} Bxf3 {[%emt 0:00:36]} 24. Rxd4 {[%emt 0:00:01]} Bc6 {[%emt 0:00:08]} 25. Rdxc4 {[%emt 0:00:45]} Rad8 {[%emt 0:00:09]} 26. R4c2 {[%emt 0:00:12]} Rd5 {[%emt 0:00:19]} 27. Bg3 {[%emt 0:00:41]} Red8 {[%emt 0:00:03]} 28. Kh2 {[%emt 0:00:03]} R8d7 {[%emt 0:00:22]} 29. Kg1 {[%emt 0:00:26]} Kf8 {[%emt 0:00:10]} 30. Kh2 {[%emt 0:00:22]} Ke7 {[%emt 0:00:05]} 31. Re1 {[%emt 0:00:12]} Ke6 {[%emt 0:00:08]} 32. Rce2 {[%emt 0:00:35]} Rd2 {[%emt 0:00:32]} 33. Kg1 {[%emt 0:00:42]} Bb5 {[%emt 0:00:08]} 34. Rxd2 {[%emt 0:00:11]} Rxd2 {[%emt 0:00:01]} 35. a3 {[%emt 0:00:41]} Bc6 {[%emt 0:00:12]} 36. Re3 {[%emt 0:00:11]} a5 {[%emt 0:00:14]} 37. Rc3 {[%emt 0:00:09]} Ra2 {[%emt 0:00:20]} 38. b4 {[%emt 0:00:15]} a4 {[%emt 0:00:09]} 39. Bf4 {[%emt 0:00:15]} Rb2 {[%emt 0:00:16]} 40. Bc1 {[%emt 0:00:08]} Rb1 {[%emt 0:00:14]} 41. f4 {[%emt 0:00:01]} Ra1 {[%emt 0:00:10]} 42. Rc2 {[%emt 0:00:13]} Be4 {[%emt 0:00:02]} 43. Rxc7 {[%emt 0:00:02]} Bc6 {[%emt 0:00:02]} 44. f5+ {[%emt 0:00:09]} Kxf5 {[%emt 0:00:17]} 45. Rxf7+ {[%emt 0:00:03]} Kxe5 {[%emt 0:00:17]} 46. Rf1 {[%emt 0:00:08]} Kd5 {[%emt 0:00:12]} 47. Bb2 {[%emt 0:00:31]} Rxf1+ {[%emt 0:00:03]} 48. Kxf1 {[%emt 0:00:02]} g6 {[%emt 0:00:01]} 49. Bc1 {[%emt 0:00:12]} h5 {[%emt 0:00:03]} 50. g3 {[%emt 0:00:07]} Kc4 {[%emt 0:00:09]} 51. Ke2 {[%emt 0:00:14]} Kc3 {[%emt 0:00:14]} 52. Ke3 {[%emt 0:00:17]} b5 {[%emt 0:00:17]} 53. Kf4 {[%emt 0:00:16]} Kc2 {[%emt 0:00:04]} 54. Be3 {[%emt 0:00:04]} Kb2 {[%emt 0:00:05]} 55. Ke5 {[%emt 0:00:23]} Kxa3 {[%emt 0:00:07]} 56. Kd6 {[%emt 0:00:00]} Bg2 {[%emt 0:00:25]} 57. h4 {[%emt 0:00:05]} Kxb4 {[%emt 0:00:05]} 58. Ke5 {[%emt 0:00:26]} 0-1

[Event "European Women Rapid-ch 2023"]
[Site "Monaco"]
[Date "2024.01.14"]
[Round "10.23"]
[White "Lazarne Vajda, Szidonia"]
[Black "Zapata Campos, Lidia Karen"]
[Result "1-0"]
[ECO "B22"]
[WhiteElo "2283"]
[BlackElo "2025"]
[Annotator "ChessBase"]
[PlyCount "87"]
[EventDate "2023.12.19"]
[EventType "swiss"]
[EventCountry "MNC"]
[SourceTitle "playchess.com"]
[Source "ChessBase"]
[SourceQuality "1"]
[TimeControl "900+10"]

1. e4 {[%emt 0:00:02]} c5 {[%emt 0:00:28]} 2. c3 {[%emt 0:00:04]} Nf6 {[%emt 0:00:39]} 3. e5 {[%emt 0:00:02]} Nd5 {[%emt 0:00:01]} 4. d4 {[%emt 0:00:01]} cxd4 {[%emt 0:00:02]} 5. cxd4 {[%emt 0:00:01]} e6 {[%emt 0:00:00]} 6. Nf3 {[%emt 0:00:02]} b6 {[%emt 0:00:13]} 7. Nc3 {[%emt 0:00:03]} Nxc3 {[%emt 0:00:01]} 8. bxc3 {[%emt 0:00:01]} Bb7 {[%emt 0:00:01]} 9. Bd3 {[%emt 0:00:07]} Be7 {[%emt 0:00:01]} 10. O-O {[%emt 0:00:03]} d6 {[%emt 0:00:01]} 11. Qe2 {[%emt 0:00:21]} Nd7 {[%emt 0:00:15]} 12. Bf4 {[%emt 0:01:19]} dxe5 {[%emt 0:00:31]} 13. dxe5 {[%emt 0:00:21]} Qc7 {[%emt 0:02:36]} 14. Rac1 {[%emt 0:02:17]} h6 {[%emt 0:00:00]} 15. Rfd1 {[%emt 0:00:17]} O-O {[%emt 0:00:00]} 16. Bb1 {[%emt 0:00:32]} Nc5 {[%emt 0:00:00]} 17. Nd4 {[%emt 0:00:16]} Rfd8 {[%emt 0:01:45]} 18. f3 {[%emt 0:00:15]} Bf8 {[%emt 0:00:03]} 19. Qf2 {[%emt 0:01:40]} a6 {[%emt 0:00:39]} 20. h4 {[%emt 0:00:27]} g6 {[%emt 0:03:35]} 21. h5 {[%emt 0:00:17]} g5 {[%emt 0:00:01]} 22. Bg3 {[%emt 0:00:18]} Bg7 {[%emt 0:00:01]} 23. Qc2 {[%emt 0:00:06]} Kf8 {[%emt 0:00:50]} 24. Qh7 {[%emt 0:00:03]} Na4 {[%emt 0:02:39]} 25. Re1 {[%emt 0:04:25]} Nxc3 {[%emt 0:00:40]} 26. Nf5 {[%emt 0:02:38]} exf5 {[%emt 0:00:21]} 27. e6 {[%emt 0:00:01]} Ne2+ {[%emt 0:00:55]} 28. Rxe2 {[%emt 0:00:02]} Qxc1+ {[%emt 0:00:01]} 29. Re1 {[%emt 0:00:01]} Qxe1+ {[%emt 0:00:26]} 30. Bxe1 {[%emt 0:00:01]} Rd1 {[%emt 0:00:01]} 31. exf7 {[%emt 0:00:53]} Rxe1+ {[%emt 0:02:47]} 32. Kf2 {[%emt 0:00:05]} Rxb1 {[%emt 0:00:21]} 33. Qg8+ {[%emt 0:00:03]} Ke7 {[%emt 0:00:00]} 34. Qxg7 {[%emt 0:00:01]} Rf8 {[%emt 0:00:04]} 35. Qe5+ {[%emt 0:00:06]} Kxf7 {[%emt 0:00:23]} 36. Qxf5+ {[%emt 0:00:04]} Ke7 {[%emt 0:00:00]} 37. Qxb1 {[%emt 0:00:02]} Rf6 {[%emt 0:00:01]} 38. Qh7+ {[%emt 0:00:04]} Rf7 {[%emt 0:00:04]} 39. Qxh6 {[%emt 0:00:01]} b5 {[%emt 0:00:22]} 40. Qxg5+ {[%emt 0:00:06]} Kd7 {[%emt 0:00:11]} 41. h6 {[%emt 0:00:01]} Be4 {[%emt 0:00:26]} 42. Qg8 {[%emt 0:00:36]} Ke7 {[%emt 0:00:27]} 43. Qc8 {[%emt 0:00:29]} Rf6 {[%emt 0:00:28]} 44. Qc5+ {[%emt 0:00:05]} 1-0

[Event "European Women Rapid-ch 2023"]
[Site "Monaco"]
[Date "2024.01.14"]
[Round "10.24"]
[White "Gaprindashvili, Nona"]
[Black "Lezhepekova, Veronika"]
[Result "1-0"]
[ECO "D55"]
[WhiteElo "2243"]
[BlackElo "1935"]
[Annotator "TA"]
[PlyCount "39"]
[EventDate "2023.12.19"]
[EventType "swiss"]
[EventCountry "MNC"]
[SourceTitle "playchess.com"]
[Source "ChessBase"]
[SourceQuality "1"]
[TimeControl "900+10"]

{[%evp 15,39,14,0,-1,0,11,7,10,67,46,72,0,141,144,179,171,510,492,464,225,452,311,328,304,312,310]} 1. d4 {[%emt 0:00:01]} d5 {[%emt 0:00:01]} 2. c4 {[%emt 0:00:01]} e6 {[%emt 0:00:04]} 3. Nf3 {[%emt 0:00:02]} Nf6 {[%emt 0:00:03]} 4. Nc3 {[%emt 0:00:02]} Be7 {[%emt 0:00:05]} 5. Bg5 {[%emt 0:00:05]} O-O {[%emt 0:00:22]} 6. e3 {[%emt 0:00:01]} b6 {[%emt 0:00:11]} 7. Bxf6 {[%emt 0:00:12]} Bxf6 {[%emt 0:00:08]} 8. cxd5 {[%emt 0:00:01]} exd5 {[%emt 0:00:06]} 9. g3 {[%emt 0:00:01]} c6 {[%emt 0:00:23]} 10. Bg2 {[%emt 0:00:03]} Re8 {[%emt 0:00:30]} 11. O-O {[%emt 0:00:04] The position is equal.} Bf5 {[%emt 0:00:24]} ({Black should try} 11... Na6 $11) 12. b4 {[%emt 0:00:10]} Qd7 {[%emt 0:01:11]} 13. a4 {[%emt 0:00:19]} (13. b5 $16) 13... c5 {[%emt 0:00:30]} 14. bxc5 {[%emt 0:00:04]} bxc5 {[%emt 0:00:01]} 15. Nxd5 {[%emt 0:00:12]} Be4 $2 {[%emt 0:02:28] [#]} (15... Qxd5 {is tougher.} 16. Nd2 Qd7 (16... Be4 $2 17. Nxe4 Rxe4 18. Qd3 $18)) 16. Nxf6+ $18 {[%emt 0:00:04]} gxf6 {[%emt 0:00:01]} 17. dxc5 {[%emt 0:00:09]} (17. Ne5 $142 Rxe5 18. dxe5 Bxg2 19. Kxg2) 17... Qe7 {[%emt 0:00:32]} (17... Qxd1 {was necessary.} 18. Rfxd1 Na6) 18. Qd6 {[%emt 0:00:39]} Nc6 {[%emt 0:00:15]} 19. Qxe7 {[%emt 0:00:12]} Rxe7 {[%emt 0:00:01]} 20. Nd4 {[%emt 0:00:08] Weighted Error Value: White=0.56/Black=1.03.  Mistake:       	White=2     	Black=4      Inaccurate:     	White=1     	Black=1      OK:         	White=4     	---        Best:        	White=1     	---} 1-0

[Event "European Women Rapid-ch 2023"]
[Site "Monaco"]
[Date "2024.01.14"]
[Round "10.25"]
[White "Reizniece-Ozola, Dana"]
[Black "Piddubna, Bozhena"]
[Result "0-1"]
[ECO "A14"]
[WhiteElo "2278"]
[BlackElo "2035"]
[Annotator "ChessBase"]
[PlyCount "81"]
[EventDate "2023.12.19"]
[EventType "swiss"]
[EventCountry "MNC"]
[SourceTitle "playchess.com"]
[Source "ChessBase"]
[SourceQuality "1"]
[TimeControl "900+10"]

1. c4 {[%emt 0:00:01]} e6 {[%emt 0:00:01]} 2. Nf3 {[%emt 0:00:09]} Nf6 {[%emt 0:00:03]} 3. g3 {[%emt 0:00:03]} b6 {[%emt 0:00:02]} 4. Bg2 {[%emt 0:00:02]} Bb7 {[%emt 0:00:03]} 5. O-O {[%emt 0:00:03]} Be7 {[%emt 0:00:03]} 6. Nc3 {[%emt 0:00:05]} O-O {[%emt 0:00:03]} 7. b3 {[%emt 0:00:06]} d5 {[%emt 0:00:01]} 8. e3 {[%emt 0:00:03]} c5 {[%emt 0:00:08]} 9. Bb2 {[%emt 0:00:03]} Nc6 {[%emt 0:00:18]} 10. d3 {[%emt 0:00:08]} a6 {[%emt 0:00:11]} 11. Qe2 {[%emt 0:00:54]} Qc7 {[%emt 0:00:11]} 12. cxd5 {[%emt 0:02:08]} exd5 {[%emt 0:00:49]} 13. d4 {[%emt 0:00:08]} cxd4 {[%emt 0:00:41]} 14. Nxd4 {[%emt 0:00:02]} Nxd4 {[%emt 0:00:02]} 15. exd4 {[%emt 0:00:01]} Rfe8 {[%emt 0:00:07]} 16. Qd3 {[%emt 0:00:13]} Qd7 {[%emt 0:00:06]} 17. Rfe1 {[%emt 0:00:18]} Bb4 {[%emt 0:02:23]} 18. Rxe8+ {[%emt 0:01:02]} Rxe8 {[%emt 0:00:02]} 19. Na4 {[%emt 0:00:09]} Qd8 {[%emt 0:01:56]} 20. a3 {[%emt 0:00:06]} Bd6 {[%emt 0:00:01]} 21. b4 {[%emt 0:01:27]} h6 {[%emt 0:00:38]} 22. b5 {[%emt 0:00:28]} a5 {[%emt 0:00:56]} 23. Rc1 {[%emt 0:00:34]} Ne4 {[%emt 0:00:56]} 24. f3 {[%emt 0:04:33]} Nf6 {[%emt 0:00:28]} 25. Kf2 {[%emt 0:00:06]} Bc7 {[%emt 0:01:31]} 26. Bc3 {[%emt 0:00:52]} Re7 {[%emt 0:03:17]} 27. Bd2 {[%emt 0:00:55]} Ne8 {[%emt 0:00:07]} 28. Bh3 {[%emt 0:01:52]} Nd6 {[%emt 0:00:26]} 29. Nb2 {[%emt 0:00:44]} Bc8 {[%emt 0:01:30]} 30. Bxc8 {[%emt 0:00:08]} Qxc8 {[%emt 0:00:02]} 31. Bf4 {[%emt 0:00:21]} Qh3 {[%emt 0:02:07]} 32. Kg1 {[%emt 0:00:12]} Nc4 {[%emt 0:00:51]} 33. Nxc4 {[%emt 0:01:20]} Bxf4 {[%emt 0:00:01]} 34. gxf4 {[%emt 0:00:59]} dxc4 {[%emt 0:00:01]} 35. Qf1 {[%emt 0:00:26]} Qf5 {[%emt 0:00:25]} 36. Rxc4 {[%emt 0:00:18]} Re6 {[%emt 0:00:01]} 37. Kh1 {[%emt 0:00:06]} Rg6 {[%emt 0:00:04]} 38. Qc1 {[%emt 0:00:02]} Kh7 {[%emt 0:00:04]} 39. Rc6 {[%emt 0:00:02]} f6 {[%emt 0:00:25]} 40. Rxb6 {[%emt 0:00:09]} Qh3 {[%emt 0:00:13]} 41. Qg1 {[%emt 0:00:27]} 0-1

[Event "European Women Rapid-ch 2023"]
[Site "Monaco"]
[Date "2024.01.14"]
[Round "10.26"]
[White "Galvan Cipriani, Viviana"]
[Black "De Seroux, Camille"]
[Result "0-1"]
[ECO "A26"]
[WhiteElo "2104"]
[BlackElo "2075"]
[Annotator "TA"]
[PlyCount "137"]
[EventDate "2023.12.19"]
[EventType "swiss"]
[EventCountry "MNC"]
[SourceTitle "playchess.com"]
[Source "ChessBase"]
[SourceQuality "1"]
[TimeControl "900+10"]

{[%evp 32,137,0,-4,0,0,4,0,0,-3,0,-52,-40,-48,0,-39,-50,-60,-65,-58,-43,-74,-29,-87,-81,-115,-84,-93,-77,-89,-79,-75,37,-76,-68,-101,-95,-89,0,-114,-17,-158,-139,-150,-145,-137,-93,-105,-69,-67,-60,-98,-63,-84,-69,-145,-96,-126,-117,-206,-156,-233,-266,-331,-335,-616,-614,-768,-145,-306,-285,-29980,-29981,-29980,-29981,-29996,-29997,-29997,-29974,-29970,-29973,-29969,-29968,-29968,-6419,-6419,-1057,-1430,-1283,-1310,-1224,-1322,-925,-1462,-1398,-2208,-2186,-1883,-1065,-2061,-1981,-1781,-1697,-29974,-29975,-29963,-6215,-29990]} 1. c4 {[%emt 0:00:02]} Nf6 {[%emt 0:00:02]} 2. Nc3 {[%emt 0:00:03]} Nc6 {[%emt 0:00:03]} 3. g3 {[%emt 0:00:02]} g6 {[%emt 0:00:03]} 4. Bg2 {[%emt 0:00:02]} Bg7 {[%emt 0:00:03]} 5. e4 {[%emt 0:00:05]} d6 {[%emt 0:00:02]} 6. Nge2 {[%emt 0:00:03]} O-O {[%emt 0:00:26]} 7. d3 {[%emt 0:00:12]} e5 {[%emt 0:00:06]} 8. O-O {[%emt 0:00:03]} Nd7 {[%emt 0:00:29]} 9. Be3 {[%emt 0:00:16]} Nc5 {[%emt 0:01:16]} 10. d4 {[%emt 0:01:08]} exd4 {[%emt 0:00:24]} 11. Nxd4 {[%emt 0:00:05]} Ne5 {[%emt 0:01:53]} 12. Qe2 {[%emt 0:00:43]} Ng4 {[%emt 0:00:26]} 13. Rad1 {[%emt 0:00:24]} Nxe3 {[%emt 0:00:18]} 14. Qxe3 {[%emt 0:00:04]} Re8 {[%emt 0:00:55]} 15. b4 {[%emt 0:00:36]} Ne6 {[%emt 0:02:51]} 16. Nb3 {[%emt 0:00:40]} c6 {[%emt 0:01:40]} 17. Qd3 {[%emt 0:00:44]} Qb6 {[%emt 0:01:42]} 18. a3 {[%emt 0:00:13]} Bd7 {[%emt 0:01:02]} 19. Kh1 {[%emt 0:01:38]} Rad8 {[%emt 0:00:10]} 20. f4 {[%emt 0:00:19]} Bc8 {[%emt 0:01:42]} 21. f5 {[%emt 0:01:03]} (21. Qc2 $11) 21... Nf8 {[%emt 0:00:06]} 22. Qc2 {[%emt 0:01:00]} Be5 {[%emt 0:00:28]} (22... Qc7 $15 {was preferrable.}) 23. c5 {[%emt 0:02:28]} dxc5 {[%emt 0:00:28]} 24. Na4 {[%emt 0:01:04]} Qc7 {[%emt 0:00:26]} 25. Naxc5 {[%emt 0:00:04]} Nd7 {[%emt 0:00:21]} 26. Nd3 {[%emt 0:00:11]} Bh8 {[%emt 0:00:18]} 27. fxg6 {[%emt 0:03:37]} (27. Na5 $11 {remains equal.}) 27... hxg6 $17 {[%emt 0:00:03]} 28. Rde1 {[%emt 0:00:23]} Nf6 {[%emt 0:00:13]} 29. Nf4 {[%emt 0:00:11]} Qe5 {[%emt 0:00:30]} 30. Nc5 {[%emt 0:00:03]} Ng4 {[%emt 0:00:18]} 31. h3 {[%emt 0:00:39] [#]} Nf6 {[%emt 0:00:07]} (31... Nh6 $1 $17 32. g4 Qg5) 32. Ncd3 {[%emt 0:00:18]} (32. Qb3 $1 $14 {keeps the upper hand.}) 32... Qg5 {[%emt 0:00:17]} 33. Kh2 {[%emt 0:00:03]} Qh6 {[%emt 0:00:10]} 34. Nf2 {[%emt 0:00:30]} Rd4 {[%emt 0:00:25]} (34... Ng4+ $17 35. Nxg4 Bxg4) 35. Kg1 {[%emt 0:00:19]} (35. e5 $11 Nh5 36. e6 Nxf4 (36... Bxe6 37. Nxe6 fxe6 38. Qb3 $16) 37. Ng4) 35... Red8 {[%emt 0:00:09]} (35... Nh5 $17 36. Nxh5 Qxh5) 36. Rd1 {[%emt 0:00:08] [#]} (36. e5 $11 Nh5 37. Ne2) 36... Nh5 $1 $17 {[%emt 0:00:28]} 37. Nxh5 {[%emt 0:00:19]} Qxh5 {[%emt 0:00:01]} 38. Kh2 {[%emt 0:00:31]} Be5 {[%emt 0:00:03]} 39. Rxd4 {[%emt 0:00:10]} Rxd4 {[%emt 0:00:04]} 40. Nd3 {[%emt 0:00:05]} Bg7 {[%emt 0:00:29]} (40... Be6 {with more complications.} 41. Rf2 Rc4 42. Qd2 Bc7) 41. Nf4 {[%emt 0:00:27]} Qg5 {[%emt 0:00:13]} 42. h4 {[%emt 0:00:19]} Qe5 {[%emt 0:00:16]} 43. Qa2 {[%emt 0:00:25]} (43. Qb3 $1 $15) 43... Qd6 {[%emt 0:00:09]} (43... g5 $142 44. Ne2 Be6) 44. Rf2 {[%emt 0:00:24]} Be5 {[%emt 0:00:07]} 45. Qc2 {[%emt 0:00:10]} (45. Qb3 $17) 45... Rd1 {[%emt 0:00:05]} 46. Qb3 {[%emt 0:00:21]} (46. Qe2 $17) 46... Bg4 $19 {[%emt 0:00:08]} 47. Qc2 {[%emt 0:00:07]} Qd4 {[%emt 0:00:20]} 48. Bh3 $2 {[%emt 0:00:13]} (48. Qc5) 48... Bxh3 $19 {[%emt 0:00:17]} 49. Kxh3 {[%emt 0:00:09]} Ra1 $2 {[%emt 0:00:11]} (49... Qd7+ $19 50. Kh2 Bxf4) 50. a4 $2 {[%emt 0:00:10]} (50. Rd2 $17 Qg1 51. Rd8+ Kg7 52. Qc5 Qxc5 53. bxc5) 50... Ra3 {[%emt 0:00:20]} 51. Kh2 $2 {[%emt 0:00:11]} (51. Qe2 $19) 51... Qe3 {[%emt 0:00:09]} 52. Rg2 {[%emt 0:00:14]} Bxf4 {[%emt 0:00:04]} 53. gxf4 {[%emt 0:00:02]} Qxf4+ {[%emt 0:00:08]} 54. Kh1 {[%emt 0:00:02]} Ra1+ {[%emt 0:00:11]} 55. Rg1 {[%emt 0:00:02]} Qxh4+ {[%emt 0:00:07]} 56. Qh2 {[%emt 0:00:01]} Qxe4+ {[%emt 0:00:06]} 57. Qg2 {[%emt 0:00:02]} Qxg2+ {[%emt 0:00:09]} ({Not} 57... Qxb4 58. Rxa1 Qh4+ 59. Qh2 Qe4+ 60. Qg2 Qh4+ 61. Qh2 Qe4+ 62. Qg2 Qh4+ $11) 58. Kxg2 {[%emt 0:00:02]} Rxa4 {[%emt 0:00:02]} 59. Rb1 {[%emt 0:00:03]} a6 {[%emt 0:00:04]} 60. Kf3 {[%emt 0:00:02]} Kg7 {[%emt 0:00:01]} 61. Ke3 {[%emt 0:00:02]} Kf6 {[%emt 0:00:01]} 62. Kd3 {[%emt 0:00:02]} g5 {[%emt 0:00:04]} 63. Rf1+ {[%emt 0:00:06]} Kg6 {[%emt 0:00:02]} 64. Kc3 {[%emt 0:00:01]} Ra3+ {[%emt 0:00:09]} 65. Kc4 {[%emt 0:00:02]} f5 {[%emt 0:00:04]} 66. Rd1 {[%emt 0:00:07]} a5 {[%emt 0:00:14]} 67. bxa5 {[%emt 0:00:10]} Rxa5 {[%emt 0:00:02]} 68. Rb1 {[%emt 0:00:09]} Rb5 {[%emt 0:00:04]} 69. Kd4 {[%emt 0:00:12]} 0-1

[Event "European Women Rapid-ch 2023"]
[Site "Monaco"]
[Date "2024.01.14"]
[Round "10.27"]
[White "Hrebenshchykova, Yelyzaveta"]
[Black "Cornileau, Juliette"]
[Result "1-0"]
[ECO "B89"]
[WhiteElo "2275"]
[BlackElo "2007"]
[Annotator "ChessBase"]
[PlyCount "95"]
[EventDate "2023.12.19"]
[EventType "swiss"]
[EventCountry "MNC"]
[SourceTitle "playchess.com"]
[Source "ChessBase"]
[SourceQuality "1"]
[TimeControl "900+10"]

1. e4 {[%emt 0:00:02]} c5 {[%emt 0:00:01]} 2. Nf3 {[%emt 0:00:00]} d6 {[%emt 0:00:01]} 3. d4 {[%emt 0:00:06]} cxd4 {[%emt 0:00:01]} 4. Nxd4 {[%emt 0:00:01]} Nf6 {[%emt 0:00:01]} 5. Nc3 {[%emt 0:00:01]} Nc6 {[%emt 0:00:01]} 6. Bc4 {[%emt 0:00:03]} e6 {[%emt 0:00:07]} 7. Be3 {[%emt 0:00:05]} a6 {[%emt 0:00:17]} 8. Qe2 {[%emt 0:00:36]} Bd7 {[%emt 0:00:16]} 9. Bb3 {[%emt 0:02:00]} Be7 {[%emt 0:01:11]} 10. O-O-O {[%emt 0:00:19]} b5 {[%emt 0:00:23]} 11. Nxc6 {[%emt 0:00:19]} Bxc6 {[%emt 0:00:10]} 12. e5 {[%emt 0:00:02]} Nd7 {[%emt 0:02:06]} 13. exd6 {[%emt 0:01:08]} Bf6 {[%emt 0:00:01]} 14. Nd5 {[%emt 0:05:03]} Bxd5 {[%emt 0:00:49]} 15. Bxd5 {[%emt 0:00:01]} Rc8 {[%emt 0:00:01]} 16. Kb1 {[%emt 0:00:10]} O-O {[%emt 0:00:56]} 17. Bb3 {[%emt 0:00:34]} Rb8 {[%emt 0:01:25]} 18. Ba7 {[%emt 0:02:10]} Rb7 {[%emt 0:00:16]} 19. Bd4 {[%emt 0:00:01]} a5 {[%emt 0:01:00]} 20. c3 {[%emt 0:00:56]} g6 {[%emt 0:03:08]} 21. Qf3 {[%emt 0:01:26]} Rb8 {[%emt 0:00:01]} 22. Bxf6 {[%emt 0:00:05]} Nxf6 {[%emt 0:00:08]} 23. a3 {[%emt 0:01:37]} Kg7 {[%emt 0:01:25]} 24. Rhe1 {[%emt 0:00:00]} Qd7 {[%emt 0:01:01]} 25. Qf4 {[%emt 0:00:00]} Rb6 {[%emt 0:00:26]} 26. Rd4 {[%emt 0:00:19]} e5 {[%emt 0:01:46]} 27. Rxe5 {[%emt 0:00:06]} Rxd6 {[%emt 0:00:02]} 28. Rxd6 {[%emt 0:00:20]} Qxd6 {[%emt 0:00:01]} 29. Qd4 {[%emt 0:00:01]} Qc6 {[%emt 0:00:21]} 30. g4 {[%emt 0:01:05]} h6 {[%emt 0:01:32]} 31. Rc5 {[%emt 0:00:22]} Qh1+ {[%emt 0:00:44]} 32. Ka2 {[%emt 0:00:01]} a4 {[%emt 0:00:28]} 33. Bd5 {[%emt 0:00:11]} Qxh2 {[%emt 0:00:13]} 34. Rxb5 {[%emt 0:00:13]} Rd8 {[%emt 0:00:20]} 35. c4 {[%emt 0:00:28]} Qd6 {[%emt 0:00:08]} 36. Rb6 {[%emt 0:00:28]} Qe7 {[%emt 0:00:01]} 37. f4 {[%emt 0:00:09]} g5 {[%emt 0:00:15]} 38. fxg5 {[%emt 0:00:02]} hxg5 {[%emt 0:00:02]} 39. Ra6 {[%emt 0:00:35]} Rd6 {[%emt 0:00:18]} 40. Rxa4 {[%emt 0:00:04]} Qe2 {[%emt 0:00:09]} 41. Ra7 {[%emt 0:00:12]} Qe8 {[%emt 0:00:15]} 42. Qd2 {[%emt 0:00:30]} Nxd5 {[%emt 0:00:09]} 43. Qxg5+ {[%emt 0:00:03]} Rg6 {[%emt 0:00:01]} 44. Qxd5 {[%emt 0:00:02]} Rxg4 {[%emt 0:00:16]} 45. Rb7 {[%emt 0:00:26]} Rg6 {[%emt 0:00:16]} 46. Qd4+ {[%emt 0:00:04]} Kg8 {[%emt 0:00:01]} 47. Rb5 {[%emt 0:00:14]} Qe2 {[%emt 0:00:16]} 48. Rb8+ {[%emt 0:00:03]} 1-0

[Event "European Women Rapid-ch 2023"]
[Site "Monaco"]
[Date "2024.01.14"]
[Round "11.1"]
[White "Paehtz, Elisabeth"]
[Black "Stefanova, Antoaneta"]
[Result "1/2-1/2"]
[ECO "D02"]
[WhiteElo "2461"]
[BlackElo "2431"]
[Annotator "RC"]
[PlyCount "21"]
[EventDate "2023.12.19"]
[EventType "swiss"]
[EventCountry "MNC"]
[SourceTitle "playchess.com"]
[Source "ChessBase"]
[SourceQuality "1"]
[TimeControl "900+10"]

1. d4 {[%emt 0:00:01]} d5 {[%emt 0:00:00]} 2. Nf3 {[%emt 0:00:01]} Nf6 {[%emt 0:00:02]} 3. c3 {[%emt 0:00:01]} e6 {[%emt 0:01:07]} 4. Bf4 {[%emt 0:00:02]} Bd6 {[%emt 0:00:03]} 5. e3 {[%emt 0:00:04]} Bxf4 {[%emt 0:00:10]} 6. exf4 {[%emt 0:00:01]} b6 {[%emt 0:00:10]} 7. Nbd2 {[%emt 0:00:17]} O-O {[%emt 0:00:04]} 8. Bd3 {[%emt 0:00:05]} c5 {[%emt 0:00:43]} 9. O-O {[%emt 0:00:15]} Ba6 {[%emt 0:00:08]} 10. Bxa6 {[%emt 0:00:05]} Nxa6 {[%emt 0:00:01]} 11. Qe2 {[%emt 0:00:04]} 1/2-1/2